[Event "IV Elllobregat Open Chess Tmnt"]
[Site "Sant Boi de Llobregat, Spain"]
[Date "2023.12.02"]
[Round "3.44"]
[White "Alinasab, Mobina"]
[Black "Morris, James"]
[Result "1-0"]
[TimeControl "90min/40moves + 15min/end + 30sec from move 1"]
[WhiteFideId "12528897"]
[BlackFideId "3205800"]
[WhiteElo "2306"]
[BlackElo "2453"]

1. e4 {[%clk 01:30:56]} {[%emt 00:00:03]} c5 {[%clk 01:29:19]} {[%emt
00:01:38]} 2. Nc3 {[%clk 01:31:10]} {[%emt 00:00:20]} Nc6 {[%clk 01:29:34]}
{[%emt 00:00:14]} 3. f4 {[%clk 01:31:26]} {[%emt 00:00:14]} e6 {[%clk
01:27:32]} {[%emt 00:02:32]} 4. Nf3 {[%clk 01:31:31]} {[%emt 00:00:25]} a6
{[%clk 01:26:54]} {[%emt 00:01:08]} 5. g3 {[%clk 01:29:02]} {[%emt 00:02:59]}
d5 {[%clk 01:18:00]} {[%emt 00:09:24]} 6. d3 {[%clk 01:26:37]} {[%emt
00:02:56]} Nf6 {[%clk 01:18:02]} {[%emt 00:00:27]} 7. e5 {[%clk 01:26:08]}
{[%emt 00:00:59]} d4 {[%clk 01:11:43]} {[%emt 00:06:48]} 8. exf6 {[%clk
01:13:52]} {[%emt 00:12:47]} dxc3 {[%clk 01:12:09]} {[%emt 00:00:04]} 9. bxc3
{[%clk 01:08:14]} {[%emt 00:06:08]} Qxf6 {[%clk 01:11:46]} {[%emt 00:00:53]} 10.
Bb2 {[%clk 01:08:27]} {[%emt 00:00:18]} h5 {[%clk 01:04:21]} {[%emt 00:07:54]}
11. Qe2 {[%clk 01:02:55]} {[%emt 00:06:02]} Bd7 {[%clk 00:55:53]} {[%emt
00:08:58]} 12. Bg2 {[%clk 01:03:02]} {[%emt 00:00:23]} O-O-O {[%clk 00:45:46]}
{[%emt 00:10:36]} 13. Rb1 {[%clk 00:59:32]} {[%emt 00:04:02]} Bd6 {[%clk
00:45:01]} {[%emt 00:01:14]} 14. c4 {[%clk 00:51:18]} {[%emt 00:08:45]} Qe7
{[%clk 00:35:16]} {[%emt 00:10:15]} 15. Bxg7 {[%clk 00:50:14]} {[%emt
00:01:34]} Rhg8 {[%clk 00:31:14]} {[%emt 00:04:31]} 16. Bc3 {[%clk 00:43:45]}
{[%emt 00:06:59]} h4 {[%clk 00:30:22]} {[%emt 00:01:22]} 17. Nxh4 {[%clk
00:39:30]} {[%emt 00:04:45]} Bxf4 {[%clk 00:30:40]} {[%emt 00:00:11]} 18. O-O
{[%clk 00:38:06]} {[%emt 00:01:55]} Bc7 {[%clk 00:26:57]} {[%emt 00:04:13]} 19.
Bf6 {[%clk 00:34:23]} {[%emt 00:04:13]} Qd6 {[%clk 00:27:19]} {[%emt 00:00:08]}
20. Nf3 {[%clk 00:33:10]} {[%emt 00:01:43]} Rde8 {[%clk 00:25:15]} {[%emt
00:02:35]} 21. Ng5 {[%clk 00:29:00]} {[%emt 00:04:39]} Rxg5 {[%clk 00:19:59]}
{[%emt 00:05:47]} 22. Bxg5 {[%clk 00:29:28]} {[%emt 00:00:01]} f5 {[%clk
00:20:24]} {[%emt 00:00:05]} 23. Qf2 {[%clk 00:27:51]} {[%emt 00:02:08]} Rg8
{[%clk 00:19:52]} {[%emt 00:01:00]} 24. Bf4 {[%clk 00:19:46]} {[%emt 00:08:37]}
e5 {[%clk 00:20:14]} {[%emt 00:00:07]} 25. Be3 {[%clk 00:20:13]} {[%emt
00:00:04]} b6 {[%clk 00:19:08]} {[%emt 00:01:35]} 26. Bxc6 {[%clk 00:16:52]}
{[%emt 00:03:51]} Qxc6 {[%clk 00:15:55]} {[%emt 00:03:44]} 27. Qg2 {[%clk
00:15:05]} {[%emt 00:02:15]} f4 {[%clk 00:14:56]} {[%emt 00:01:30]} 28. Qxc6
{[%clk 00:13:20]} {[%emt 00:02:16]} Bxc6 {[%clk 00:15:24]} 29. Bf2 {[%clk
00:04:40]} {[%emt 00:09:10]} Kd7 {[%clk 00:15:50]} {[%emt 00:00:04]} 30. Rfe1
{[%clk 00:04:45]} {[%emt 00:00:25]} Ke6 {[%clk 00:15:33]} {[%emt 00:00:47]} 31.
Kf1 {[%clk 00:03:16]} {[%emt 00:01:58]} Kf5 {[%clk 00:15:51]} {[%emt 00:00:12]}
32. gxf4 {[%clk 00:02:03]} {[%emt 00:01:43]} Bg2+ {[%clk 00:16:00]} {[%emt
00:00:21]} 33. Ke2 {[%clk 00:02:33]} {[%emt 00:00:02]} exf4 {[%clk 00:16:23]}
{[%emt 00:00:06]} 34. Kd2 {[%clk 00:02:11]} {[%emt 00:00:51]} Bd8 {[%clk
00:15:58]} {[%emt 00:00:56]} 35. c3 {[%clk 00:01:17]} {[%emt 00:01:24]} Bf3
{[%clk 00:14:47]} {[%emt 00:01:41]} 36. Rg1 {[%clk 00:01:02]} {[%emt 00:00:45]}
Re8 {[%clk 00:14:16]} {[%emt 00:01:02]} 37. Rbe1 {[%clk 00:01:12]} {[%emt
00:00:19]} Rh8 {[%clk 00:14:43]} {[%emt 00:00:03]} 38. d4 {[%clk 00:00:43]}
{[%emt 00:00:59]} Be4 {[%clk 00:14:39]} {[%emt 00:00:35]} 39. h4 {[%clk
00:00:43]} {[%emt 00:00:29]} Bxh4 {[%clk 00:15:04]} {[%emt 00:00:06]} 40. Bxh4
{[%clk 00:15:37]} {[%emt 00:00:35]} Rxh4 {[%clk 00:30:32]} {[%emt 00:00:02]} 41.
Rg8 {[%clk 00:14:33]} {[%emt 00:01:34]} Rh2+ {[%clk 00:27:36]} {[%emt
00:03:26]} 42. Re2 {[%clk 00:13:41]} {[%emt 00:01:22]} Rxe2+ {[%clk 00:28:02]}
{[%emt 00:00:04]} 43. Kxe2 {[%clk 00:14:07]} {[%emt 00:00:04]} Bb1 {[%clk
00:28:20]} {[%emt 00:00:11]} 44. Rf8+ {[%clk 00:14:16]} {[%emt 00:00:22]} Ke4
{[%clk 00:26:50]} {[%emt 00:01:59]} 45. Re8+ {[%clk 00:14:42]} {[%emt
00:00:05]} Kf5 {[%clk 00:27:20]} 46. a3 {[%clk 00:13:32]} {[%emt 00:01:40]} Ba2
{[%clk 00:27:37]} {[%emt 00:00:13]} 47. Kf3 {[%clk 00:11:05]} {[%emt 00:02:57]}
cxd4 {[%clk 00:23:45]} {[%emt 00:04:22]} 48. cxd4 {[%clk 00:11:30]} {[%emt
00:00:05]} Bxc4 {[%clk 00:24:13]} {[%emt 00:00:02]} 49. Re5+ {[%clk 00:11:54]}
{[%emt 00:00:06]} Kf6 {[%clk 00:24:34]} {[%emt 00:00:09]} 50. Kxf4 {[%clk
00:12:20]} {[%emt 00:00:04]} b5 {[%clk 00:24:46]} {[%emt 00:00:18]} 51. d5
{[%clk 00:10:47]} {[%emt 00:02:03]} Bb3 {[%clk 00:24:11]} {[%emt 00:01:05]} 52.
Re6+ {[%clk 00:11:02]} {[%emt 00:00:15]} Kf7 {[%clk 00:24:34]} {[%emt
00:00:06]} 53. Ke5 {[%clk 00:11:26]} {[%emt 00:00:07]} a5 {[%clk 00:24:54]}
{[%emt 00:00:11]} 54. Kd6 {[%clk 00:11:20]} {[%emt 00:00:35]} Bc4 {[%clk
00:25:02]} {[%emt 00:00:22]} 55. Re4 {[%clk 00:11:17]} {[%emt 00:00:33]} Bd3
{[%clk 00:24:38]} {[%emt 00:00:54]} 56. Re3 {[%clk 00:11:39]} {[%emt 00:00:07]}
Bc4 {[%clk 00:25:00]} {[%emt 00:00:09]} 57. Kc6 {[%clk 00:11:31]} {[%emt
00:00:38]} b4 {[%clk 00:25:13]} {[%emt 00:00:17]} 58. axb4 {[%clk 00:11:57]}
{[%emt 00:00:04]} axb4 {[%clk 00:25:42]} {[%emt 00:00:02]} 59. Re4 {[%clk
00:10:58]} {[%emt 00:01:28]} 1-0

[Event "IV Elllobregat Open Chess Tmnt"]
[Site "Sant Boi de Llobregat, Spain"]
[Date "2023.12.02"]
[Round "3.45"]
[White "Sai Agni Jeevitesh, J"]
[Black "Peyrer, Konstantin"]
[Result "0-1"]
[TimeControl "90min/40moves + 15min/end + 30sec from move 1"]
[WhiteFideId "5070147"]
[BlackFideId "1640879"]
[WhiteElo "2302"]
[BlackElo "2447"]

1. d4 {[%clk 01:30:40]} {[%emt 00:00:19]} Nf6 {[%clk 01:30:37]} {[%emt
00:00:23]} 2. Nf3 {[%clk 01:30:58]} {[%emt 00:00:12]} e6 {[%clk 01:30:42]}
{[%emt 00:00:25]} 3. c4 {[%clk 01:31:08]} {[%emt 00:00:20]} d5 {[%clk
01:30:27]} {[%emt 00:00:46]} 4. g3 {[%clk 01:31:22]} {[%emt 00:00:16]} Bb4+
{[%clk 01:30:51]} {[%emt 00:00:06]} 5. Bd2 {[%clk 01:31:46]} {[%emt 00:00:06]}
Be7 {[%clk 01:31:17]} {[%emt 00:00:04]} 6. Bg2 {[%clk 01:32:09]} {[%emt
00:00:07]} O-O {[%clk 01:31:38]} {[%emt 00:00:08]} 7. O-O {[%clk 01:32:35]}
{[%emt 00:00:05]} c6 {[%clk 01:32:04]} {[%emt 00:00:04]} 8. Qc2 {[%clk
01:32:31]} {[%emt 00:00:34]} Nbd7 {[%clk 01:32:28]} {[%emt 00:00:05]} 9. Bf4
{[%clk 01:32:43]} {[%emt 00:00:19]} a5 {[%clk 01:32:43]} {[%emt 00:00:15]} 10.
Rd1 {[%clk 01:32:54]} {[%emt 00:00:19]} a4 {[%clk 01:32:57]} {[%emt 00:00:16]}
11. Ne5 {[%clk 01:32:59]} {[%emt 00:00:25]} Qa5 {[%clk 01:33:05]} {[%emt
00:00:22]} 12. Nxd7 {[%clk 01:32:16]} {[%emt 00:01:14]} Bxd7 {[%clk 01:33:12]}
{[%emt 00:00:22]} 13. c5 {[%clk 01:32:40]} {[%emt 00:00:07]} Rfc8 {[%clk
01:27:57]} {[%emt 00:05:44]} 14. Nc3 {[%clk 01:30:08]} {[%emt 00:03:02]} Qb4
{[%clk 01:21:02]} {[%emt 00:07:25]} 15. a3 {[%clk 01:18:44]} {[%emt 00:11:55]}
Qc4 {[%clk 01:20:19]} {[%emt 00:01:12]} 16. Rac1 {[%clk 01:09:05]} {[%emt
00:10:09]} Nh5 {[%clk 01:19:52]} {[%emt 00:00:56]} 17. e3 {[%clk 00:48:48]}
{[%emt 00:20:48]} Qa6 {[%clk 01:14:03]} {[%emt 00:06:19]} 18. Bf1 {[%clk
00:39:23]} {[%emt 00:09:55]} Qa5 {[%clk 01:14:11]} {[%emt 00:00:22]} 19. Bd3
{[%clk 00:33:53]} {[%emt 00:06:00]} Nxf4 {[%clk 01:13:06]} {[%emt 00:01:34]} 20.
gxf4 {[%clk 00:34:21]} {[%emt 00:00:03]} f5 {[%clk 01:12:53]} {[%emt 00:00:43]}
21. Kh1 {[%clk 00:34:09]} {[%emt 00:00:41]} b6 {[%clk 01:11:03]} {[%emt
00:02:21]} 22. Na2 {[%clk 00:29:42]} {[%emt 00:04:57]} bxc5 {[%clk 01:10:37]}
{[%emt 00:00:56]} 23. dxc5 {[%clk 00:30:11]} Qd8 {[%clk 01:09:45]} {[%emt
00:01:20]} 24. Nc3 {[%clk 00:28:50]} {[%emt 00:01:53]} Qa5 {[%clk 01:05:20]}
{[%emt 00:04:55]} 25. Ne2 {[%clk 00:24:42]} {[%emt 00:04:37]} Qc7 {[%clk
01:00:57]} {[%emt 00:04:54]} 26. Rg1 {[%clk 00:15:23]} {[%emt 00:09:48]} Ra5
{[%clk 00:56:15]} {[%emt 00:05:12]} 27. Qc3 {[%clk 00:09:56]} {[%emt 00:05:57]}
g6 {[%clk 00:55:55]} {[%emt 00:00:51]} 28. Qd4 {[%clk 00:09:17]} {[%emt
00:01:09]} Qd8 {[%clk 00:54:56]} {[%emt 00:01:28]} 29. Qe5 {[%clk 00:05:50]}
{[%emt 00:03:57]} Qf8 {[%clk 00:54:19]} {[%emt 00:01:07]} 30. Nd4 {[%clk
00:01:36]} {[%emt 00:04:45]} Qg7 {[%clk 00:54:33]} {[%emt 00:00:16]} 31. Rc2
{[%clk 00:00:55]} {[%emt 00:01:11]} Qxe5 {[%clk 00:54:05]} {[%emt 00:00:58]} 32.
fxe5 {[%clk 00:01:24]} {[%emt 00:00:01]} Rxc5 {[%clk 00:54:28]} {[%emt
00:00:07]} 33. Bxf5 {[%clk 00:00:33]} {[%emt 00:01:21]} exf5 {[%clk 00:54:33]}
{[%emt 00:00:25]} 34. e6 {[%emt 00:00:02]} Be8 {[%clk 00:54:17]} {[%emt
00:00:45]} 35. Nxf5 {[%clk 00:01:31]} {[%emt 00:00:01]} Bf8 {[%clk 00:54:32]}
{[%emt 00:00:14]} 0-1

[Event "IV Elllobregat Open Chess Tmnt"]
[Site "Sant Boi de Llobregat, Spain"]
[Date "2023.12.02"]
[Round "3.46"]
[White "Akbas, Umut Ata"]
[Black "Tyurin, Artem"]
[Result "1/2-1/2"]
[TimeControl "90min/40moves + 15min/end + 30sec from move 1"]
[WhiteFideId "44572646"]
[BlackFideId "44130112"]
[WhiteElo "2446"]
[BlackElo "2302"]

1. d4 {[%clk 01:25:12]} {[%emt 00:05:47]} Nf6 {[%clk 01:30:56]} {[%emt
00:00:05]} 2. c4 {[%clk 01:25:35]} {[%emt 00:00:07]} e6 {[%clk 01:31:23]}
{[%emt 00:00:03]} 3. Nc3 {[%clk 01:25:58]} {[%emt 00:00:07]} Bb4 {[%clk
01:31:50]} {[%emt 00:00:03]} 4. e3 {[%clk 01:26:18]} {[%emt 00:00:10]} O-O
{[%clk 01:32:10]} {[%emt 00:00:10]} 5. Bd2 {[%clk 01:26:39]} {[%emt 00:00:08]}
c5 {[%clk 01:30:55]} {[%emt 00:01:45]} 6. a3 {[%clk 01:26:59]} {[%emt
00:00:10]} Bxc3 {[%clk 01:31:16]} {[%emt 00:00:10]} 7. Bxc3 {[%clk 01:27:22]}
{[%emt 00:00:07]} Ne4 {[%clk 01:31:37]} {[%emt 00:00:09]} 8. Ne2 {[%clk
01:27:44]} {[%emt 00:00:08]} b6 {[%clk 01:30:31]} {[%emt 00:01:36]} 9. d5
{[%clk 01:27:06]} {[%emt 00:01:08]} Ba6 {[%clk 01:28:53]} {[%emt 00:02:08]} 10.
Qd3 {[%clk 01:27:02]} {[%emt 00:00:34]} exd5 {[%clk 01:26:45]} {[%emt
00:02:38]} 11. Qxd5 {[%clk 01:27:20]} {[%emt 00:00:12]} Qe7 {[%clk 01:27:08]}
{[%emt 00:00:07]} 12. b3 {[%clk 01:23:44]} {[%emt 00:04:06]} Re8 {[%clk
01:26:59]} {[%emt 00:00:39]} 13. Bb2 {[%clk 01:20:37]} {[%emt 00:03:37]} Nxf2
{[%clk 01:26:16]} {[%emt 00:01:13]} 14. Kxf2 {[%clk 01:20:59]} {[%emt
00:00:08]} Qxe3+ {[%clk 01:26:41]} {[%emt 00:00:05]} 15. Ke1 {[%clk 01:21:20]}
{[%emt 00:00:08]} Qxb3 {[%clk 01:27:03]} {[%emt 00:00:08]} 16. Qd2 {[%clk
01:21:36]} {[%emt 00:00:14]} Bxc4 {[%clk 01:26:06]} {[%emt 00:01:28]} 17. Kf2
{[%clk 01:20:05]} {[%emt 00:02:00]} d5 {[%clk 01:18:07]} {[%emt 00:08:30]} 18.
Rd1 {[%clk 01:15:22]} {[%emt 00:05:13]} Nc6 {[%clk 01:09:07]} {[%emt 00:09:30]}
19. Nc1 {[%clk 01:13:27]} {[%emt 00:02:25]} Qa4 {[%clk 00:51:51]} {[%emt
00:17:47]} 20. Bxc4 {[%clk 01:11:12]} {[%emt 00:02:44]} dxc4 {[%clk 00:45:52]}
{[%emt 00:06:29]} 21. Rhe1 {[%clk 01:11:35]} {[%emt 00:00:07]} Nd4 {[%clk
00:32:58]} {[%emt 00:13:24]} 22. Ne2 {[%clk 00:57:08]} {[%emt 00:14:57]} Nxe2
{[%clk 00:32:00]} {[%emt 00:01:28]} 23. Rxe2 {[%clk 00:55:29]} {[%emt
00:02:09]} Rxe2+ {[%clk 00:27:28]} {[%emt 00:05:02]} 24. Qxe2 {[%clk 00:55:48]}
{[%emt 00:00:11]} Re8 {[%clk 00:27:47]} {[%emt 00:00:10]} 25. Qd2 {[%clk
00:55:53]} {[%emt 00:00:24]} Qc6 {[%clk 00:27:10]} {[%emt 00:01:08]} 26. Qd5
{[%clk 00:30:37]} {[%emt 00:25:47]} Qxd5 {[%clk 00:18:59]} {[%emt 00:08:41]} 27.
Rxd5 {[%clk 00:30:47]} {[%emt 00:00:20]} f6 {[%clk 00:19:25]} {[%emt 00:00:03]}
28. Rd7 {[%clk 00:30:08]} {[%emt 00:01:09]} a6 {[%clk 00:14:53]} {[%emt
00:05:03]} 29. Ra7 {[%clk 00:15:43]} {[%emt 00:14:54]} b5 {[%clk 00:10:17]}
{[%emt 00:05:07]} 30. Rxa6 {[%clk 00:05:51]} {[%emt 00:10:22]} Rd8 {[%clk
00:10:15]} {[%emt 00:00:32]} 31. Ke2 {[%clk 00:03:28]} {[%emt 00:02:53]} Re8+
{[%clk 00:10:31]} {[%emt 00:00:14]} 32. Kd1 {[%clk 00:03:09]} {[%emt 00:00:49]}
Rd8+ {[%clk 00:10:16]} {[%emt 00:00:45]} 33. Kc2 {[%clk 00:02:49]} {[%emt
00:00:50]} b4 {[%clk 00:06:11]} {[%emt 00:04:35]} 34. Rb6 {[%clk 00:02:08]}
{[%emt 00:01:12]} Re8 {[%clk 00:06:13]} {[%emt 00:00:27]} 35. Kd1 {[%clk
00:02:13]} {[%emt 00:00:25]} Rd8+ {[%clk 00:05:43]} {[%emt 00:01:00]} 36. Ke2
{[%clk 00:02:17]} {[%emt 00:00:25]} Re8+ {[%clk 00:04:39]} {[%emt 00:01:35]} 37.
Kf2 {[%clk 00:01:13]} {[%emt 00:01:34]} Rd8 {[%clk 00:01:07]} {[%emt 00:04:02]}
38. Ke2 {[%clk 00:01:00]} {[%emt 00:00:43]} Re8+ {[%clk 00:01:33]} {[%emt
00:00:05]} 39. Kf2 {[%clk 00:00:54]} {[%emt 00:00:35]} Rd8 {[%clk 00:02:02]}
{[%emt 00:00:01]} 40. axb4 {[%clk 00:15:33]} {[%emt 00:00:51]} Rd2+ {[%clk
00:17:30]} {[%emt 00:00:01]} 41. Ke3 {[%clk 00:14:58]} {[%emt 00:01:04]} Rxb2
{[%clk 00:17:58]} {[%emt 00:00:03]} 42. bxc5 {[%clk 00:15:23]} {[%emt
00:00:06]} c3 {[%clk 00:18:15]} {[%emt 00:00:13]} 43. Kd3 {[%clk 00:10:13]}
{[%emt 00:05:39]} Rxg2 {[%clk 00:17:00]} {[%emt 00:01:45]} 44. Kxc3 {[%clk
00:07:12]} {[%emt 00:03:31]} Kf7 {[%clk 00:15:19]} {[%emt 00:02:11]} 45. Rb1
{[%clk 00:06:58]} {[%emt 00:00:44]} Rxh2 {[%clk 00:08:39]} {[%emt 00:07:10]} 46.
c6 {[%clk 00:06:07]} {[%emt 00:01:22]} Ke7 {[%clk 00:06:41]} {[%emt 00:02:28]}
47. Rd1 {[%clk 00:06:25]} {[%emt 00:00:11]} Ra2 {[%clk 00:06:47]} {[%emt
00:00:24]} 48. Rd7+ {[%clk 00:06:17]} {[%emt 00:00:38]} Ke6 {[%clk 00:07:11]}
{[%emt 00:00:06]} 49. Rxg7 {[%clk 00:06:41]} {[%emt 00:00:06]} 1/2-1/2